fUSD/lending_fUSD_20241123
["ID","MTS","AMOUNT","RATE_DAILY","PERIOD"]
[343163420,1732390116611,320.0,0.00023,10]
[343163421,1732390117699,469.05629147,0.0002,10]
[343163422,1732390118026,752.83890281,0.00022,7]
[343163426,1732390119585,2000.0,0.00027,120]
[343163427,1732390120193,1487.00679091,0.0003,30]
[343163430,1732390120990,2156.62827766,0.0001421,7]
[343163431,1732390121255,153.33339123,0.00027,2]
[343163432,1732390121548,1013.0,0.0002,6]
[343163461,1732390231538,-246.62304412,0.0003759,2]
[343163462,1732390231548,-166.23110568,0.000378,2]
[343163463,1732390231558,-400.0,0.00037899,2]
[343163464,1732390231568,-41146.19845795,0.000379,2]
[343163465,1732390231578,-6841.94739225,0.0003799,2]
[343163468,1732390231683,-519.59103622,0.0003799,2]
[343163469,1732390231694,-3242.09502277,0.0003799,2]
[343163470,1732390231706,-383.67948,0.0003799,2]
[343163471,1732390231717,-401.965,0.0003799,2]
[343163472,1732390235710,-5211.91649321,0.0003799,2]
[343163473,1732390235720,-5319.55303365,0.00038,2]
[343163506,1732390236507,-2528.08961899,0.00038,2]
[343163507,1732390236517,-294.0,0.0003944,2]
[343163508,1732390236527,-1723.02663034,0.000397,2]
[343163511,1732390237537,-1685.2442655,0.000397,2]
[343163513,1732390237547,-163.41385472,0.000399,2]
[343163514,1732390237556,-2828.66524414,0.0004,2]
[343163515,1732390237565,-3849.0,0.0004,2]
[343163516,1732390237575,-3849.0,0.0004,2]
[343163517,1732390237584,-3849.0,0.0004,2]
[343163518,1732390237594,-3849.0,0.0004,2]
[343163519,1732390237605,-478.4,0.0004,2]
[343163520,1732390237615,-887.07607567,0.0004,20]
[343163521,1732390237624,-14344.46992681,0.0004,7]
[343163522,1732390237634,-560.0,0.00040514,5]
[343163523,1732390237643,-500.0,0.00041,2]
[343163524,1732390237653,-162.38,0.00041091,2]
[343163525,1732390237663,-165.31,0.00041096,2]
[343163526,1732390237673,-223.16268068,0.00041096,2]
[343163527,1732390237683,-294.0,0.000417,2]
[343163528,1732390237694,-163.4138547,0.0004272,2]
[343163529,1732390237703,-550.0,0.00043,2]
[343163530,1732390237713,-11512.88217553,0.00043,120]
[343163531,1732390237723,-567.74,0.00043,2]
[343163532,1732390237733,-150.99,0.00043,2]
[343163533,1732390237742,-589.11,0.00043,2]
[343163534,1732390237751,-4411.97,0.00043,2]
[343163535,1732390237760,-6206.28774366,0.00043,120]
[343163536,1732390237772,-7104.93204767,0.00043,120]
[343163537,1732390237782,-188.8906912,0.00043,2]
[343163538,1732390237792,-971.42,0.00043226,2]
[343163539,1732390237801,-783.0,0.0004331,5]
[343163540,1732390237811,-289.1485,0.00043424,2]
[343163541,1732390237822,-294.0,0.0004396,30]
[343163542,1732390237830,-173.52,0.00044218,120]
[343163543,1732390237840,-702.054,0.00044383,70]
[343163544,1732390237849,-170.479,0.00044383,70]
[343163545,1732390237859,-326.88,0.00044395,2]
[343163546,1732390237869,-600.0,0.00045,2]
[343163547,1732390237879,-2568.37427955,0.00045,2]
[343163548,1732390237891,-16149.0561489,0.00045,2]
[343163549,1732390237903,-301.91055826,0.00045,2]
[343163550,1732390237919,-972.79862448,0.00045,2]
[343163551,1732390237928,-136.96749805,0.00045067,2]
[343163552,1732390238201,-13.03250195,0.00045067,2]
[343163553,1732390238211,-488.96749805,0.0004549,2]
[343163554,1732390238223,-482.45250195,0.0004549,2]
[343163555,1732390238233,-165.99,0.00045521,2]
[343163556,1732390238243,-163.4138547,0.00045539,2]
[343163557,1732390238253,-250.0,0.00045639,2]
[343163558,1732390238263,-500.0,0.00045847,2]
[343163559,1732390238273,-329.75,0.00045985,2]
[343163560,1732390238282,-3345.09177684,0.00046,30]
[343163561,1732390238291,-326.88,0.00046038,2]
[343163562,1732390238302,-250.0,0.0004605,120]
[343163563,1732390238311,-23900.0,0.0004605,2]
[343163564,1732390238321,-178.78,0.00046054,120]
[343163565,1732390238331,-785.64,0.00046077,2]
[343163566,1732390238340,-165.31,0.00046143,2]
[343163567,1732390238356,-294.0,0.0004622,30]
[343163568,1732390238369,-166.33,0.0004624,2]
[343163569,1732390238378,-220.03,0.0004624,2]
[343163570,1732390238388,-200.0,0.00046262,2]
[343163571,1732390238397,-1000.0,0.00046265,2]
[343163573,1732390238407,-1097.0,0.00046298,5]
[343163575,1732390238415,-151.0,0.00046356,120]
[343163576,1732390238427,-161.14,0.00046488,120]
[343163579,1732390238437,-176.47,0.00046655,2]
[343163581,1732390238447,-150.31,0.00046932,2]
[343163582,1732390238457,-650.0,0.00047,2]
[343163583,1732390238466,-180.62,0.0004713,120]
[343163584,1732390238476,-1075.61,0.00047194,2]
[343163585,1732390238486,-500.0,0.00047198,2]
[343163586,1732390238495,-150.0,0.00047319,2]
[343163587,1732390238505,-250.0,0.00047351,120]
[343163588,1732390238516,-1407.87,0.00047374,2]
[343163589,1732390238525,-248.0,0.00047384,2]
[343163590,1732390238535,-678.01898496,0.00047526,4]
[343163591,1732390238544,-1407.87,0.0004759,2]
[343163592,1732390238554,-1407.87,0.0004759,2]
[343163593,1732390238564,-1407.87,0.0004759,2]
[343163594,1732390238574,-1407.87,0.0004759,2]
[343163595,1732390238584,-1407.87,0.0004759,2]
[343163596,1732390238594,-1407.87,0.0004759,2]
[343163597,1732390238603,-1407.87,0.0004759,2]
[343163598,1732390238613,-1407.87,0.0004759,2]
[343163599,1732390238623,-1407.87,0.0004759,2]
[343163600,1732390238633,-395.2026053,0.00047599,31]
[343163601,1732390238642,-240430.52600927,0.000476,30]
[343163602,1732390238655,-472178.49131486,0.000476,30]
[343163603,1732390238665,-326.88,0.0004768,2]
[343163604,1732390238674,-971.42,0.00047754,2]
[343163605,1732390238684,-436.3597505,0.00048,30]
[343163606,1732390238695,-76912.62120778,0.00048,2]
[343163607,1732390238705,-165.99,0.00048026,2]
[343163608,1732390238715,-329.75,0.00048284,2]
[343163609,1732390238725,-294.0,0.0004848,30]
[343163610,1732390238735,-2500.0,0.0004878,2]
[343163611,1732390238744,-400.0,0.000488,17]
[343163612,1732390238755,-264.77691806,0.000488,28]
[343163613,1732390238765,-981.18367214,0.000488,120]
[343163614,1732390238775,-708.3141,0.00048879,2]
[343163615,1732390238784,-1193164.58871657,0.0004888,2]
[343163616,1732390238794,-800.0,0.000489,17]
[343163617,1732390238804,-5639.0,0.00049,7]
[343163618,1732390238813,-700.0,0.00049,2]
[343163619,1732390238823,-326.88,0.00049323,2]
[343163620,1732390238832,-1536.0,0.00049493,5]
[343163621,1732390238842,-1702.248378,0.000495,14]
[343163622,1732390238852,-36561.1395855,0.000498,30]
[343163623,1732390238866,-264.77691803,0.00049813,28]
[343163624,1732390238876,-500.0,0.0005,120]
[343163625,1732390238886,-392.05129401,0.0005,68]
[343163626,1732390238895,-30001.39279,0.0005,120]
[343163627,1732390238904,-971.42,0.00050018,2]
[343163628,1732390238914,-483.574,0.0005015,120]
[343163629,1732390238923,-150.31,0.00050335,2]
[343163630,1732390238932,-165.99,0.0005053,2]
[343163631,1732390238941,-329.75,0.00050583,2]
[343163632,1732390238950,-250.0,0.00050716,2]
[343163633,1732390238960,-294.0,0.0005074,30]
[343163634,1732390238970,-264.77691803,0.00050826,28]
[343163635,1732390238980,-500.0,0.00050829,2]
[343163636,1732390238989,-6394.3362,0.00050829,2]
[343163637,1732390238998,-1200.0,0.000509,18]
[343163638,1732390239009,-1000.0,0.00050928,30]
[343163639,1732390239018,-297858.5328,0.00050929,2]
[343163640,1732390239027,-179.81203202,0.00050929,30]
[343163641,1732390239037,-326.88,0.00050965,2]
[343163642,1732390239046,-150.0,0.00050979,2]
[343163643,1732390239055,-9277.95481816,0.00050979,2]
[343163644,1732390239070,-152.10532875,0.00050979,2]
[343163645,1732390239079,-2000.0,0.00050979,7]
[343163646,1732390239089,-750.0,0.00051,2]
[343163647,1732390239099,-165.31,0.0005119,2]
[343163648,1732390239110,-220.0,0.00051369,120]
[343163649,1732390239120,-100000.0,0.00051443,2]
[343163650,1732390239130,-37934.2973,0.00051469,2]
[343163651,1732390239139,-245000.0,0.00051469,2]
[343163652,1732390239149,-1000.0,0.00051469,2]
[343163653,1732390239160,-173.52,0.00051588,120]
[343163654,1732390239169,-166.16,0.00051757,2]
[343163655,1732390239179,-151.0,0.00051808,120]
[343163656,1732390239189,-264.77691803,0.00051839,28]
[343163657,1732390239199,-1000.0,0.00052048,120]
[343163658,1732390239208,-971.42,0.00052282,2]
[343163659,1732390239217,-250.0,0.00052509,2]
[343163660,1732390239226,-211.186181,0.00052628,120]
[343163661,1732390239235,-2460.0,0.000527,15]
[343163662,1732390239244,-500.0,0.00052797,60]
[343163663,1732390239254,-264.77691803,0.00052851,28]
[343163664,1732390239264,-329.75,0.00052883,2]
[343163665,1732390239273,-267.0,0.00052908,15]
[343163666,1732390239282,-800.0,0.00053,2]
[343163667,1732390239292,-401993.30186721,0.00053,120]
[343163668,1732390239301,-294.0,0.0005301,30]
[343163669,1732390239310,-180.62,0.00053021,120]
[343163670,1732390239320,-165.99,0.00053034,2]
[343163671,1732390239329,-150.31,0.00053737,2]
[343163672,1732390239338,-264.77691803,0.00053864,28]
[343163673,1732390239348,-1000.0,0.000539,120]
[343163674,1732390239361,-1600.0,0.000539,19]
[343163675,1732390239371,-166.33,0.00053947,2]
[343163676,1732390239380,-261.04,0.0005398,7]
[343163677,1732390239391,-150.5,0.0005399,7]
[343163678,1732390239400,-339.03182057,0.00054,120]
[343163679,1732390239410,-151.69,0.00054,120]
[343163680,1732390239420,-151.69,0.00054,120]
[343163681,1732390239432,-151.69,0.00054,120]
[343163682,1732390239443,-151.69,0.00054,120]
[343163683,1732390239453,-151.69,0.00054,120]
[343163684,1732390239463,-151.69,0.00054,120]
[343163685,1732390239473,-250.0,0.00054303,2]
[343163686,1732390239482,-592.8,0.000545,120]
[343163687,1732390239492,-30819.39768174,0.000545,120]
[343163688,1732390239502,-971.42,0.00054546,2]
[343163689,1732390239512,-161.14,0.00054671,120]
[343163690,1732390239522,-500.0,0.000547,120]
[343163691,1732390239532,-825.68,0.00054741,30]
[343163692,1732390239542,-561.0,0.00054773,120]
[343163693,1732390239552,-1928.0,0.00054773,120]
[343163694,1732390239561,-3750.0,0.00054773,120]
[343163695,1732390239571,-1261.0,0.00054773,120]
[343163696,1732390239581,-815.0,0.00054773,2]
[343163697,1732390239590,-3517.0,0.00054773,120]
[343163698,1732390239600,-918.0,0.00054773,120]
[343163699,1732390239611,-150.0,0.00054773,2]
[343163700,1732390239620,-150.0,0.00054773,120]
[343163701,1732390239631,-510.0,0.00054773,120]
[343163702,1732390239641,-1257.0,0.00054773,120]
[343163703,1732390239651,-5944.0,0.00054773,120]
[343163704,1732390239660,-13666.0,0.00054773,120]
[343163705,1732390239670,-1162.0,0.00054773,120]
[343163706,1732390239680,-1996.0,0.00054773,120]
[343163707,1732390239690,-500.0,0.00054794,7]
[343163708,1732390239700,-269.9041881,0.00054794,7]
[343163709,1732390239710,-614.69099212,0.00054794,120]
[343163710,1732390239719,-500.0,0.00054794,120]
[343163711,1732390239729,-500.0,0.00054794,120]
[343163712,1732390239738,-500.0,0.00054794,120]
[343163713,1732390239748,-500.0,0.00054794,120]
[343163714,1732390239756,-500.0,0.00054794,120]
[343163715,1732390239766,-500.0,0.00054794,120]
[343163717,1732390239775,-500.0,0.00054794,120]
[343163718,1732390239785,-252.54029047,0.00054794,120]
[343163719,1732390239794,-428.22860438,0.00054794,120]
[343163720,1732390239805,-500.0,0.00054794,120]
[343163721,1732390239815,-502.26101864,0.00054794,120]
[343163722,1732390239824,-616.32574109,0.00054794,120]
[343163723,1732390239835,-545.67540382,0.00054794,120]
[343163724,1732390239845,-500.0,0.00054794,120]
[343163725,1732390239856,-473.76830008,0.00054794,120]
[343163726,1732390239866,-500.0,0.00054794,120]
[343163727,1732390239875,-275.44,0.00054794,120]
[343163728,1732390239884,-500.0,0.00054794,120]
[343163729,1732390239894,-500.0,0.00054794,120]
[343163730,1732390239904,-568.1,0.00054794,120]
[343163731,1732390239914,-530.3,0.00054794,120]
[343163732,1732390239923,-616.95630309,0.00054794,120]
[343163733,1732390239933,-500.0,0.00054794,120]
[343163736,1732390239942,-292.92,0.00054794,120]
[343163738,1732390239951,-1000.0,0.00054794,120]
[343163740,1732390239961,-500.0,0.00054794,120]
[343163742,1732390239971,-500.0,0.00054794,120]
[343163744,1732390239980,-500.0,0.00054794,120]
[343163746,1732390239989,-500.0,0.00054794,120]
[343163748,1732390239999,-500.0,0.00054794,120]
[343163750,1732390240008,-500.0,0.00054794,120]
[343163752,1732390240017,-500.0,0.00054794,120]
[343163754,1732390240028,-500.0,0.00054794,120]
[343163755,1732390240037,-500.0,0.00054794,120]
[343163757,1732390240046,-500.0,0.00054794,120]
[343163759,1732390240056,-322.14,0.00054794,120]
[343163761,1732390240066,-544.37,0.00054794,120]
[343163763,1732390240076,-500.0,0.00054794,120]
[343163765,1732390240085,-500.0,0.00054794,120]
[343163766,1732390240094,-500.0,0.00054794,120]
[343163768,1732390240104,-206.24,0.00054794,120]
[343163770,1732390240114,-500.0,0.00054794,120]
[343163773,1732390240124,-255.58544661,0.00054794,120]
[343163774,1732390240133,-500.0,0.00054794,120]
[343163776,1732390240143,-500.0,0.00054794,120]
[343163779,1732390240153,-500.0,0.00054794,120]
[343163780,1732390240162,-500.0,0.00054794,120]
[343163782,1732390240172,-500.0,0.00054794,120]
[343163784,1732390240182,-500.0,0.00054794,120]
[343163787,1732390240193,-600.07,0.00054794,120]
[343163789,1732390240204,-179.69,0.00054794,120]
[343163790,1732390240213,-500.0,0.00054794,120]
[343163793,1732390240223,-500.0,0.00054794,120]
[343163795,1732390240232,-500.0,0.00054794,120]
[343163797,1732390240242,-163.59,0.00054794,120]
[343163799,1732390240252,-500.0,0.00054794,54]
[343163800,1732390240261,-500.0,0.00054794,54]
[343163802,1732390240271,-500.0,0.00054794,54]
[343163804,1732390240280,-500.0,0.00054794,120]
[343163807,1732390240290,-500.0,0.00054794,120]
[343163808,1732390240300,-500.0,0.00054794,120]
[343163810,1732390240309,-500.0,0.00054794,120]
[343163812,1732390240319,-500.0,0.00054794,120]
[343163813,1732390240328,-500.0,0.00054794,120]
[343163814,1732390240337,-617.98,0.00054794,120]
[343163815,1732390240347,-617.98,0.00054794,120]
[343163816,1732390240359,-617.98,0.00054794,120]
[343163817,1732390240369,-500.0,0.00054794,120]
[343163818,1732390240378,-500.0,0.00054794,120]
[343163819,1732390240387,-500.0,0.00054794,120]
[343163820,1732390240398,-500.0,0.00054794,120]
[343163821,1732390240408,-500.0,0.00054794,120]
[343163822,1732390240418,-500.0,0.00054794,120]
[343163823,1732390240428,-500.0,0.00054794,120]
[343163824,1732390240440,-500.0,0.00054794,120]
[343163825,1732390240450,-500.0,0.00054794,120]
[343163827,1732390240459,-537.5012723,0.00054794,120]
[343163829,1732390240469,-500.0,0.00054794,120]
[343163831,1732390240478,-500.0,0.00054794,120]
[343163833,1732390240487,-500.0,0.00054794,120]
[343163835,1732390240497,-418.49741354,0.00054794,120]
[343163837,1732390240506,-500.0,0.00054794,120]
[343163839,1732390240516,-500.0,0.00054794,120]
[343163841,1732390240526,-500.0,0.00054794,120]
[343163843,1732390240536,-500.0,0.00054794,120]
[343163845,1732390240546,-500.0,0.00054794,120]
[343163847,1732390240555,-500.0,0.00054794,120]
[343163849,1732390240565,-500.0,0.00054794,120]
[343163851,1732390240574,-500.0,0.00054794,120]
[343163853,1732390240584,-500.0,0.00054794,120]
[343163855,1732390240594,-500.0,0.00054794,120]
[343163857,1732390240605,-500.0,0.00054794,120]
[343163859,1732390240615,-500.0,0.00054794,120]
[343163861,1732390240624,-521.0,0.00054794,120]
[343163863,1732390240634,-521.0,0.00054794,120]
[343163865,1732390240644,-521.0,0.00054794,120]
[343163867,1732390240654,-500.0,0.00054794,120]
[343163869,1732390240663,-186.16,0.00054794,120]
[343163871,1732390240673,-508.32,0.00054794,30]
[343163873,1732390240682,-508.32,0.00054794,30]
[343163875,1732390240692,-508.32,0.00054794,30]
[343163877,1732390240701,-729.99,0.00054794,120]
[343163879,1732390240712,-729.99,0.00054794,120]
[343163881,1732390240721,-729.99,0.00054794,120]
[343163883,1732390240730,-729.99,0.00054794,120]
[343163885,1732390240739,-500.0,0.00054794,120]
[343163887,1732390240749,-500.0,0.00054794,120]
[343163889,1732390240759,-500.0,0.00054794,120]
[343163891,1732390240769,-500.0,0.00054794,120]
[343163893,1732390240779,-500.0,0.00054794,120]
[343163895,1732390240788,-500.0,0.00054794,120]
[343163897,1732390240798,-500.0,0.00054794,120]
[343163899,1732390240807,-500.0,0.00054794,120]
[343163901,1732390240816,-267.45,0.00054794,120]
[343163903,1732390240826,-500.0,0.00054794,120]
[343163905,1732390240835,-500.0,0.00054794,120]
[343163907,1732390240845,-500.0,0.00054794,120]
[343163909,1732390240856,-206.14,0.00054794,120]
[343163911,1732390240864,-500.0,0.00054794,120]
[343163913,1732390240874,-500.0,0.00054794,120]
[343163915,1732390240885,-500.0,0.00054794,120]
[343163917,1732390240895,-500.0,0.00054794,120]
[343163919,1732390240905,-500.0,0.00054794,120]
[343163921,1732390240914,-500.0,0.00054794,120]
[343163923,1732390240923,-500.0,0.00054794,120]
[343163925,1732390240933,-500.0,0.00054794,120]
[343163927,1732390240942,-500.0,0.00054794,120]
[343163929,1732390240951,-500.0,0.00054794,120]
[343163931,1732390240960,-500.0,0.00054794,120]
[343163933,1732390240969,-500.0,0.00054794,120]
[343163935,1732390240978,-179.92,0.00054794,120]
[343163937,1732390240987,-500.0,0.00054794,120]
[343163939,1732390240996,-500.0,0.00054794,120]
[343163941,1732390241005,-500.0,0.00054794,120]
[343163943,1732390241014,-328.3,0.00054794,120]
[343163944,1732390241023,-500.0,0.00054794,120]
[343163947,1732390241032,-500.0,0.00054794,120]
[343163948,1732390241042,-541.58675694,0.00054794,120]
[343163950,1732390241051,-500.0,0.00054794,120]
[343163952,1732390241061,-500.0,0.00054794,120]
[343163954,1732390241070,-500.0,0.00054794,120]
[343163956,1732390241079,-500.0,0.00054794,120]
[343163958,1732390241089,-500.0,0.00054794,120]
[343163960,1732390241099,-500.0,0.00054794,120]
[343163962,1732390241110,-500.0,0.00054794,120]
[343163964,1732390241119,-500.0,0.00054794,120]
[343163966,1732390241129,-550.53,0.00054794,120]
[343163968,1732390241138,-500.0,0.00054794,120]
[343163970,1732390241148,-500.0,0.00054794,120]
[343163972,1732390241157,-500.0,0.00054794,120]
[343163974,1732390241166,-500.0,0.00054794,120]
[343163976,1732390241175,-528.18586683,0.00054794,120]
[343163978,1732390241184,-500.0,0.00054794,120]
[343163980,1732390241194,-500.0,0.00054794,120]
[343163982,1732390241203,-500.0,0.00054794,120]
[343163984,1732390241213,-500.0,0.00054794,120]
[343163986,1732390241223,-1128.62,0.00054794,120]
[343163988,1732390241233,-500.0,0.00054794,120]
[343163990,1732390241242,-1128.62,0.00054794,120]
[343163992,1732390241251,-500.0,0.00054794,120]
[343163994,1732390241261,-1128.62,0.00054794,120]
[343163996,1732390241271,-500.0,0.00054794,120]
[343163998,1732390241280,-1128.62,0.00054794,120]
[343164000,1732390241289,-500.0,0.00054794,120]
[343164002,1732390241298,-500.0,0.00054794,120]
[343164004,1732390241308,-500.0,0.00054794,120]
[343164006,1732390241318,-594.09,0.00054794,120]
[343164008,1732390241328,-500.0,0.00054794,120]
[343164010,1732390241337,-500.0,0.00054794,120]
[343164012,1732390241349,-620.59,0.00054794,120]
[343164014,1732390241362,-705.28,0.00054794,120]
[343164017,1732390241372,-705.28,0.00054794,120]
[343164018,1732390241381,-705.28,0.00054794,120]
[343164020,1732390241391,-705.28,0.00054794,120]
[343164022,1732390241400,-705.28,0.00054794,120]
[343164025,1732390241411,-705.28,0.00054794,120]
[343164027,1732390241420,-705.28,0.00054794,120]
[343164028,1732390241430,-705.28,0.00054794,120]
[343164031,1732390241440,-705.28,0.00054794,120]
[343164032,1732390241450,-705.28,0.00054794,120]
[343164034,1732390241459,-705.28,0.00054794,120]
[343164036,1732390241469,-633.67331534,0.00054794,120]
[343164038,1732390241480,-500.0,0.00054794,120]
[343164041,1732390241490,-500.0,0.00054794,120]
[343164042,1732390241499,-500.0,0.00054794,120]
[343164044,1732390241508,-500.0,0.00054794,120]
[343164046,1732390241518,-292.89937259,0.00054795,30]
[343164048,1732390241528,-153.0,0.00054795,90]
[343164051,1732390241538,-153.0,0.00054795,90]
[343164053,1732390241548,-153.0,0.00054795,90]
[343164055,1732390241558,-153.0,0.00054795,90]
[343164056,1732390241567,-153.0,0.00054795,90]
[343164059,1732390241577,-153.0,0.00054795,90]
[343164060,1732390241586,-153.0,0.00054795,90]
[343164062,1732390241596,-153.0,0.00054795,90]
[343164065,1732390241607,-153.0,0.00054795,90]
[343164067,1732390241617,-500.0,0.00054795,120]
[343164069,1732390241627,-264.77691803,0.00054877,28]
[343164071,1732390241637,-151.69,0.0005488,120]
[343164073,1732390241647,-91791.88986954,0.0005489,120]
[343164075,1732390241656,-500.0,0.000549,120]
[343164077,1732390241665,-1291.1638,0.000549,2]
[343164079,1732390241675,-5000.0,0.000549,2]
[343164081,1732390241685,-206.37457126,0.000549,11]
[343164083,1732390241694,-151.69,0.0005499,120]
[343164085,1732390241703,-268.66,0.00054998,120]
[343164087,1732390241713,-500.0,0.00054998,120]
[343164089,1732390241722,-500.0,0.00054998,120]
[343164091,1732390241731,-500.0,0.00054998,120]
[343164093,1732390241741,-500.0,0.00054998,54]
[343164095,1732390241751,-500.0,0.00054998,120]
[343164097,1732390241761,-500.0,0.00054998,120]
[343164099,1732390241771,-617.98,0.00054998,120]
[343164101,1732390241780,-500.0,0.00054998,120]
[343164103,1732390241790,-500.0,0.00054998,120]
[343164105,1732390241799,-500.0,0.00054998,120]
[343164107,1732390241809,-500.0,0.00054998,120]
[343164109,1732390241819,-500.0,0.00054998,120]
[343164111,1732390241828,-521.0,0.00054998,120]
[343164113,1732390241838,-508.32,0.00054998,30]
[343164115,1732390241848,-500.0,0.00054998,120]
[343164117,1732390241859,-500.0,0.00054998,120]
[343164119,1732390241869,-500.0,0.00054998,120]
[343164121,1732390241879,-500.0,0.00054999,120]
[343164123,1732390241889,-500.0,0.00054999,120]
[343164125,1732390241899,-500.0,0.00054999,120]
[343164127,1732390241909,-500.0,0.00054999,54]
[343164129,1732390241918,-500.0,0.00054999,120]
[343164131,1732390241928,-500.0,0.00054999,120]
[343164133,1732390241937,-617.98,0.00054999,120]
[343164135,1732390241946,-500.0,0.00054999,120]
[343164137,1732390241956,-500.0,0.00054999,120]
[343164139,1732390241965,-500.0,0.00054999,120]
[343164141,1732390241974,-500.0,0.00054999,120]
[343164143,1732390241984,-500.0,0.00054999,120]
[343164145,1732390241993,-500.0,0.00054999,120]
[343164147,1732390242002,-500.0,0.00054999,120]
[343164150,1732390242012,-500.0,0.00054999,120]
[343164151,1732390242021,-500.0,0.00054999,120]
[343164153,1732390242030,-521.0,0.00054999,120]
[343164156,1732390242040,-508.32,0.00054999,30]
[343164157,1732390242049,-729.99,0.00054999,120]
[343164159,1732390242059,-729.99,0.00054999,120]
[343164162,1732390242069,-500.0,0.00054999,120]
[343164164,1732390242079,-500.0,0.00054999,120]
[343164166,1732390242088,-500.0,0.00054999,120]
[343164168,1732390242098,-500.0,0.00054999,120]
[343164170,1732390242109,-500.0,0.00054999,120]
[343164172,1732390242118,-500.0,0.00054999,120]
[343164174,1732390242128,-500.0,0.00054999,120]
[343164176,1732390242138,-500.0,0.00054999,120]
[343164178,1732390242147,-500.0,0.00054999,120]
[343164180,1732390242157,-500.0,0.00054999,120]
[343164182,1732390242167,-500.26482364,0.00054999,120]
[343164184,1732390242177,-1128.62,0.00054999,120]
[343164186,1732390242187,-1128.62,0.00054999,120]
[343164188,1732390242195,-705.28,0.00054999,120]
[343164190,1732390242204,-705.28,0.00054999,120]
[343164192,1732390242214,-500.0,0.00054999,120]
[343164193,1732390242223,-395.85,0.00054999,120]
[343164195,1732390242232,-100000.0,0.00055,44]
[343164214,1732390242378,-610.0,0.00055,25]
[343164216,1732390242410,-500.0,0.00055,120]
[343164218,1732390242419,-850.0,0.00055,2]
[343164220,1732390242430,-4630.79986111,0.00055,12]
[343164222,1732390242440,-330659.77189621,0.00055,30]
[343164224,1732390242450,-249925.1,0.00055,120]
[343164226,1732390242459,-57894.59565979,0.00055,2]
[343164228,1732390242469,-3297.0,0.00055,5]
[343164230,1732390242480,-433.27,0.00055041,60]
[343164232,1732390242491,-433.65,0.00055041,60]
[343164234,1732390242501,-433.65,0.00055041,60]
[343164236,1732390242511,-432.69,0.00055041,60]
[343164238,1732390242521,-500.0,0.00055099,2]
[343164240,1732390242531,-302.87,0.00055178,60]
[343164242,1732390242541,-433.75,0.00055178,60]
[343164244,1732390242551,-433.75,0.00055178,60]
[343164246,1732390242560,-433.75,0.00055178,60]
[343164248,1732390242570,-329.75,0.00055182,2]
[343164250,1732390242580,-500.0,0.00055199,120]
[343164252,1732390242589,-203.0,0.0005527,30]
[343164254,1732390242599,-294.0,0.0005527,30]
[343164256,1732390242611,-2000.0,0.000553,20]
[343164258,1732390242621,-981.49246679,0.00055395,2]
[343164260,1732390242631,-400.0,0.000554,20]